fUSD/lending_fUSD_20240526
["ID","MTS","AMOUNT","RATE_DAILY","PERIOD"]
[327944921,1716689485048,-500.0,0.0003178,5]
[327944922,1716689485058,-500.0,0.0003178,5]
[327944923,1716689485067,-1498.45,0.0003178,5]
[327944924,1716689485078,-500.0,0.0003178,5]
[327944925,1716689485087,-2277.28,0.0003178,5]
[327944926,1716689485096,-500.0,0.0003178,5]
[327944927,1716689485106,-500.0,0.0003178,5]
[327944928,1716689485115,-1606.52,0.0003178,5]
[327944929,1716689485125,-2698.4,0.0003178,5]
[327944930,1716689485134,-500.0,0.0003178,5]
[327944931,1716689485143,-1582.95,0.0003178,5]
[327944932,1716689485153,-4781.37,0.0003178,5]
[327944933,1716689485162,-500.0,0.0003178,5]
[327944934,1716689485171,-500.0,0.0003178,5]
[327944935,1716689485180,-500.0,0.0003178,5]
[327944936,1716689485189,-749.73,0.0003178,5]
[327944937,1716689485199,-500.0,0.0003178,5]
[327944938,1716689485208,-879.82,0.0003178,5]
[327944939,1716689485217,-787.2,0.0003178,5]
[327944940,1716689485226,-500.0,0.0003178,5]
[327944941,1716689485235,-1104.27,0.0003178,5]
[327944942,1716689485243,-546.8653171,0.0003178,5]
[327944943,1716689485263,-1274.37,0.0003178,5]
[327944944,1716689485282,-542.82698155,0.0003178,5]
[327944945,1716689485301,-959.95,0.0003178,5]
[327944946,1716689485320,-500.0,0.0003178,5]
[327944947,1716689485339,-879.61,0.0003178,5]
[327944948,1716689485358,-1849.48,0.0003178,5]
[327944949,1716689485378,-500.0,0.0003178,5]
[327944950,1716689485396,-500.0,0.0003178,5]
[327944951,1716689485416,-569.58,0.0003178,5]
[327944952,1716689485434,-500.0,0.0003178,5]
[327944953,1716689485445,-745.38,0.0003178,5]
[327944954,1716689485457,-500.0,0.0003178,5]
[327944955,1716689485466,-1559.51,0.0003178,5]
[327944956,1716689485475,-500.0,0.0003178,5]
[327944957,1716689485485,-500.0,0.0003178,5]
[327944958,1716689485494,-500.0,0.0003178,5]
[327944959,1716689485504,-500.0,0.0003178,5]
[327944960,1716689485513,-500.0,0.0003178,5]
[327944961,1716689485524,-2287.92,0.0003178,5]
[327944962,1716689485533,-1597.17,0.0003178,5]
[327944963,1716689485544,-500.0,0.0003178,5]
[327944964,1716689485553,-546.54153902,0.0003178,5]
[327944965,1716689485562,-500.0,0.0003178,5]
[327944966,1716689485571,-500.0,0.0003178,5]
[327944967,1716689485580,-643.68,0.0003178,5]
[327944968,1716689485589,-500.0,0.0003178,5]
[327944969,1716689485599,-500.0,0.0003178,5]
[327944970,1716689485609,-500.0,0.0003178,5]
[327944971,1716689485618,-500.0,0.0003178,5]
[327944972,1716689485628,-500.0,0.0003178,5]
[327944973,1716689485637,-1236.1,0.0003178,5]
[327944974,1716689485647,-2317.12,0.0003178,5]
[327944975,1716689485656,-500.0,0.0003178,5]
[327944976,1716689485666,-1437.58,0.0003178,5]
[327944977,1716689485675,-3692.99,0.0003178,5]
[327944978,1716689485684,-2152.49,0.0003178,5]
[327944979,1716689485693,-500.0,0.0003178,5]
[327944980,1716689485702,-500.0,0.0003178,5]
[327944981,1716689485712,-500.0,0.0003178,5]
[327944982,1716689485721,-524.40512241,0.0003178,5]
[327944983,1716689485731,-1613.17,0.0003178,2]
[327944984,1716689485740,-502.92807356,0.0003178,5]
[327944985,1716689485749,-699.63,0.0003178,5]
[327944986,1716689485759,-500.0,0.0003178,5]
[327944987,1716689485769,-2548.61,0.0003178,5]
[327944988,1716689485779,-1752.19,0.0003178,5]
[327944989,1716689485788,-882.35,0.0003178,2]
[327944990,1716689485797,-1342.45,0.0003178,5]
[327944991,1716689485806,-5666.99,0.0003178,5]
[327944992,1716689485816,-500.0,0.0003178,5]
[327944993,1716689485825,-2118.61,0.0003178,5]
[327944994,1716689485834,-500.0,0.0003178,5]
[327944995,1716689485844,-901.6,0.0003178,5]
[327944996,1716689485853,-500.0,0.0003178,5]
[327944997,1716689485863,-805.87,0.0003178,5]
[327944998,1716689485872,-500.0,0.0003178,5]
[327944999,1716689485882,-500.0,0.0003178,5]
[327945000,1716689485893,-2125.94,0.0003178,5]
[327945001,1716689485902,-500.0,0.0003178,5]
[327945002,1716689485911,-500.0,0.0003178,5]
[327945003,1716689485921,-528.95183796,0.0003178,5]
[327945004,1716689485930,-1963.15,0.0003178,5]
[327945005,1716689485939,-500.0,0.0003178,5]
[327945006,1716689485949,-529.26,0.0003178,5]
[327945007,1716689485960,-1571.35,0.0003178,5]
[327945008,1716689485969,-500.0,0.0003178,5]
[327945009,1716689485979,-500.0,0.0003178,5]
[327945010,1716689485988,-531.22168689,0.0003178,5]
[327945011,1716689485998,-519.11753338,0.0003178,5]
[327945012,1716689486008,-691.28,0.0003178,5]
[327945013,1716689486018,-500.0,0.0003178,5]
[327945014,1716689486027,-500.0,0.0003178,5]
[327945015,1716689486036,-500.0,0.0003178,5]
[327945016,1716689486046,-2002.14,0.0003178,5]
[327945017,1716689486055,-500.0,0.0003178,5]
[327945018,1716689486064,-500.0,0.0003178,5]
[327945019,1716689486074,-1147.01,0.0003178,5]
[327945020,1716689486084,-709.89,0.0003178,5]
[327945021,1716689486094,-500.0,0.0003178,5]
[327945022,1716689486104,-500.0,0.0003178,5]
[327945023,1716689486114,-500.0,0.0003178,5]
[327945024,1716689486123,-1013.94,0.0003178,5]
[327945025,1716689486133,-500.0,0.0003178,5]
[327945026,1716689486142,-500.0,0.0003178,5]
[327945027,1716689486151,-500.0,0.0003178,5]
[327945028,1716689486162,-1523.91,0.0003178,5]
[327945029,1716689486171,-500.0,0.0003178,5]
[327945030,1716689486182,-2343.93,0.0003178,5]
[327945031,1716689486192,-500.0,0.0003178,5]
[327945032,1716689486201,-500.0,0.0003178,5]
[327945033,1716689486210,-500.0,0.0003178,5]
[327945034,1716689486219,-1192.5,0.0003178,5]
[327945035,1716689486229,-1271.57,0.0003178,5]
[327945036,1716689486238,-1868.72,0.0003178,5]
[327945037,1716689486248,-726.18,0.0003178,5]
[327945038,1716689486258,-1412.09,0.0003178,5]
[327945039,1716689486268,-1449.97,0.0003178,5]
[327945040,1716689486280,-500.0,0.0003178,5]
[327945041,1716689486290,-500.0,0.0003178,5]
[327945042,1716689486462,-522.09210374,0.0003178,5]
[327945043,1716689486471,-741.74,0.0003178,5]
[327945044,1716689486480,-500.0,0.0003178,5]
[327945045,1716689486491,-2210.19,0.0003178,5]
[327945046,1716689486501,-2127.22,0.0003178,5]
[327945047,1716689486512,-529.91255219,0.0003178,5]
[327945048,1716689486523,-1011.88,0.0003178,5]
[327945049,1716689486534,-1898.03,0.0003178,5]
[327945050,1716689486543,-1602.52,0.0003178,5]
[327945051,1716689486553,-552.5,0.0003178,5]
[327945052,1716689486563,-500.0,0.0003178,5]
[327945053,1716689486572,-532.99885827,0.0003178,5]
[327945054,1716689486581,-500.0,0.0003178,5]
[327945055,1716689486593,-1859.89,0.0003178,5]
[327945056,1716689486603,-749.19,0.0003178,5]
[327945057,1716689486613,-500.0,0.0003178,5]
[327945058,1716689486623,-500.0,0.0003178,5]
[327945059,1716689486635,-650.73,0.0003178,5]
[327945060,1716689486645,-500.0,0.0003178,5]
[327945061,1716689486654,-500.0,0.0003178,5]
[327945062,1716689486664,-500.0,0.0003178,5]
[327945063,1716689486673,-500.0,0.0003178,5]
[327945064,1716689486683,-3593.44,0.0003178,5]
[327945065,1716689486694,-1005.68,0.0003178,5]
[327945066,1716689486704,-1774.3,0.0003178,5]
[327945067,1716689486713,-416.90228149,0.0003178,5]
[327945068,1716689486723,-9541.34,0.0003178,5]
[327945069,1716689486733,-1243.57,0.0003178,5]
[327945070,1716689486744,-292.13032512,0.0003178,5]
[327945071,1716689486753,-500.0,0.0003178,5]
[327945072,1716689486763,-754.05,0.0003178,5]
[327945073,1716689486772,-5918.87,0.0003178,5]
[327945074,1716689486781,-855.53,0.0003178,5]
[327945075,1716689486791,-500.0,0.0003178,5]
[327945076,1716689486801,-500.0,0.0003178,5]
[327945077,1716689486810,-1634.72,0.0003178,5]
[327945078,1716689486820,-500.0,0.0003178,5]
[327945079,1716689486829,-2488.51,0.0003178,5]
[327945080,1716689486841,-1372.99,0.0003178,5]
[327945081,1716689486851,-1168.62,0.0003178,5]
[327945082,1716689486861,-919.64,0.0003178,5]
[327945083,1716689486872,-500.0,0.0003178,5]
[327945084,1716689486881,-500.0,0.0003178,5]
[327945085,1716689486891,-500.0,0.0003178,5]
[327945086,1716689486903,-500.0,0.0003178,5]
[327945087,1716689486912,-1301.95,0.0003178,5]
[327945088,1716689486922,-2657.35,0.0003178,5]
[327945089,1716689486931,-300.62,0.00031781,2]
[327945090,1716689486940,-150.0,0.00031786,7]
[327945091,1716689486950,-2000.0,0.000318,6]
[327945092,1716689486960,-2000.0,0.000318,6]
[327945093,1716689486969,-150.0,0.000318,7]
[327945094,1716689486979,-1009.26,0.0003183,2]
[327945095,1716689486988,-150.0,0.0003187,7]
[327945096,1716689486998,-150.0,0.0003187,7]
[327945097,1716689487007,-150.0,0.0003187,7]
[327945098,1716689487018,-300.0,0.0003191,2]
[327945099,1716689487027,-346.81160788,0.00031923,2]
[327945100,1716689487037,-150.0,0.00031945,120]
[327945101,1716689487046,-150.0,0.00031954,7]
[327945102,1716689487056,-431.68289882,0.00032,4]
[327945103,1716689487065,-150.0,0.00032,10]
[327945104,1716689487075,-1800.0,0.00032,33]
[327945105,1716689487086,-402.48,0.00032,10]
[327945106,1716689487096,-548.02,0.00032,2]
[327945107,1716689487105,-778.0,0.00032,20]
[327945108,1716689487115,-25000.0,0.00032018,2]
[327945109,1716689487124,-150.0,0.00032037,7]
[327945110,1716689487134,-150.41,0.00032043,2]
[327945111,1716689487145,-842.9,0.00032043,2]
[327945112,1716689487154,-436.19,0.00032043,2]
[327945113,1716689487165,-357.83,0.00032043,2]
[327945114,1716689487175,-151.19,0.00032043,2]
[327945115,1716689487184,-328.67,0.00032043,2]
[327945116,1716689487195,-150.0,0.00032043,2]
[327945117,1716689487204,-150.0,0.00032043,2]
[327945118,1716689487214,-352.18,0.00032043,2]
[327945119,1716689487224,-150.0,0.00032043,2]
[327945120,1716689487234,-150.0,0.00032043,2]
[327945121,1716689487243,-150.0,0.00032043,2]
[327945122,1716689487252,-150.0,0.00032043,2]
[327945123,1716689487263,-352.18,0.00032043,2]
[327945124,1716689487273,-150.0,0.00032043,2]
[327945125,1716689487282,-150.0,0.00032043,2]
[327945126,1716689487292,-352.18,0.00032043,2]
[327945127,1716689487301,-351.58,0.00032043,2]
[327945128,1716689487310,-5000.0,0.00032049,2]
[327945129,1716689487320,-220.25978221,0.00032054,5]
[327945130,1716689487330,-500.0,0.00032054,5]
[327945131,1716689487339,-500.0,0.00032054,5]
[327945132,1716689487349,-500.0,0.00032054,5]
[327945133,1716689487358,-500.0,0.00032054,5]
[327945134,1716689487368,-500.0,0.00032054,5]
[327945135,1716689487377,-272.16510872,0.00032054,2]
[327945136,1716689487386,-541.12631599,0.00032054,5]
[327945137,1716689487396,-500.0,0.00032054,5]
[327945138,1716689487405,-500.0,0.00032054,5]
[327945139,1716689487415,-500.0,0.00032054,5]
[327945140,1716689487424,-500.0,0.00032054,5]
[327945141,1716689487434,-500.0,0.00032054,5]
[327945142,1716689487444,-500.0,0.00032054,5]
[327945143,1716689487456,-500.0,0.00032054,5]
[327945144,1716689487466,-537.56174422,0.00032054,5]
[327945145,1716689487475,-500.0,0.00032054,5]
[327945146,1716689487485,-534.21874109,0.00032054,5]
[327945147,1716689487495,-1927.39,0.00032054,5]
[327945148,1716689487504,-500.0,0.00032054,5]
[327945149,1716689487514,-500.0,0.00032054,5]
[327945150,1716689487525,-500.0,0.00032054,5]
[327945151,1716689487534,-543.35,0.00032054,5]
[327945152,1716689487543,-500.0,0.00032054,5]
[327945153,1716689487552,-500.0,0.00032054,5]
[327945154,1716689487561,-500.0,0.00032054,5]
[327945155,1716689487571,-500.0,0.00032054,5]
[327945156,1716689487582,-500.0,0.00032054,5]
[327945157,1716689487594,-543.88281705,0.00032054,5]
[327945158,1716689487605,-500.0,0.00032054,5]
[327945159,1716689487614,-500.0,0.00032054,5]
[327945160,1716689487624,-500.0,0.00032054,5]
[327945161,1716689487635,-424.69835045,0.00032054,5]
[327945162,1716689487645,-500.0,0.00032054,5]
[327945163,1716689487655,-500.0,0.00032054,5]
[327945164,1716689487664,-500.0,0.00032054,5]
[327945165,1716689487674,-500.0,0.00032054,5]
[327945166,1716689487683,-523.48786514,0.00032054,5]
[327945167,1716689487694,-500.0,0.00032054,5]
[327945168,1716689487703,-500.0,0.00032054,5]
[327945169,1716689487714,-500.0,0.00032054,5]
[327945170,1716689487724,-500.0,0.00032054,5]
[327945171,1716689487734,-500.0,0.00032054,5]
[327945172,1716689487744,-500.0,0.00032054,5]
[327945173,1716689487754,-500.0,0.00032054,5]
[327945174,1716689487764,-500.0,0.00032054,5]
[327945175,1716689487773,-500.0,0.00032054,2]
[327945176,1716689487782,-500.0,0.00032054,5]
[327945177,1716689487793,-500.0,0.00032054,5]
[327945178,1716689487803,-500.0,0.00032054,5]
[327945179,1716689487814,-500.0,0.00032054,5]
[327945180,1716689487824,-627.16,0.00032054,5]
[327945181,1716689487836,-500.0,0.00032054,5]
[327945182,1716689487845,-500.0,0.00032054,5]
[327945183,1716689487855,-534.11981726,0.00032054,5]
[327945184,1716689487865,-500.0,0.00032054,5]
[327945185,1716689487875,-520.8455714,0.00032054,5]
[327945186,1716689487884,-500.0,0.00032054,5]
[327945187,1716689487893,-566.58,0.00032054,5]
[327945188,1716689487902,-500.0,0.00032054,5]
[327945189,1716689487912,-500.0,0.00032054,5]
[327945190,1716689487922,-635.00281618,0.00032054,5]
[327945191,1716689487933,-500.0,0.00032054,5]
[327945192,1716689487942,-500.0,0.00032054,5]
[327945193,1716689487952,-500.0,0.00032054,5]
[327945194,1716689487961,-539.79038227,0.00032054,5]
[327945195,1716689487971,-500.0,0.00032054,5]
[327945196,1716689487981,-500.0,0.00032054,5]
[327945197,1716689487990,-500.0,0.00032054,5]
[327945198,1716689488000,-500.0,0.00032054,5]
[327945199,1716689488009,-500.0,0.00032054,5]
[327945200,1716689488021,-500.0,0.00032054,5]
[327945201,1716689488030,-500.0,0.00032054,5]
[327945202,1716689488040,-500.0,0.00032054,5]
[327945203,1716689488049,-500.0,0.00032054,5]
[327945204,1716689488058,-500.0,0.00032054,5]
[327945205,1716689488068,-500.0,0.00032054,5]
[327945206,1716689488077,-500.0,0.00032054,5]
[327945207,1716689488087,-500.0,0.00032054,5]
[327945208,1716689488096,-204.04141055,0.00032054,5]
[327945209,1716689488106,-500.0,0.00032054,5]
[327945210,1716689488115,-509.51,0.00032054,5]
[327945211,1716689488125,-500.0,0.00032054,2]
[327945212,1716689488134,-500.0,0.00032054,5]
[327945213,1716689488144,-496.34668276,0.00032054,5]
[327945214,1716689488154,-500.0,0.00032054,5]
[327945215,1716689488163,-587.49,0.00032054,5]
[327945216,1716689488173,-500.0,0.00032054,5]
[327945217,1716689488182,-531.33841913,0.00032054,5]
[327945218,1716689488191,-500.0,0.00032054,5]
[327945219,1716689488201,-500.0,0.00032054,5]
[327945220,1716689488211,-500.0,0.00032054,5]
[327945221,1716689488221,-500.0,0.00032054,5]
[327945222,1716689488231,-500.0,0.00032054,5]
[327945223,1716689488240,-500.0,0.00032054,5]
[327945224,1716689488250,-500.0,0.00032054,5]
[327945225,1716689488259,-535.30339747,0.00032054,5]
[327945226,1716689488270,-500.0,0.00032054,5]
[327945227,1716689488279,-500.0,0.00032054,5]
[327945228,1716689488290,-431.83575406,0.00032054,5]
[327945229,1716689488300,-434.79301619,0.00032054,5]
[327945230,1716689488309,-500.0,0.00032054,5]
[327945231,1716689488321,-500.0,0.00032054,5]
[327945232,1716689488331,-500.0,0.00032054,5]
[327945233,1716689488342,-500.0,0.00032054,5]
[327945234,1716689488353,-519.37887483,0.00032054,5]
[327945235,1716689488363,-500.0,0.00032054,5]
[327945236,1716689488373,-500.0,0.00032054,5]
[327945237,1716689488384,-500.0,0.00032054,5]
[327945238,1716689488395,-500.0,0.00032054,5]
[327945239,1716689488406,-500.0,0.00032054,5]
[327945240,1716689488417,-500.0,0.00032054,5]
[327945241,1716689488427,-500.0,0.00032054,5]
[327945242,1716689488438,-266.95380611,0.00032054,5]
[327945243,1716689488452,-812.03,0.00032054,5]
[327945244,1716689488461,-500.0,0.00032054,5]
[327945245,1716689488470,-500.0,0.00032054,5]
[327945246,1716689488479,-500.0,0.00032054,5]
[327945247,1716689488489,-715.15,0.00032054,5]
[327945248,1716689488499,-500.0,0.00032054,5]
[327945249,1716689488508,-500.0,0.00032054,5]
[327945250,1716689488519,-500.0,0.00032054,5]
[327945251,1716689488530,-500.0,0.00032054,5]
[327945252,1716689488540,-500.0,0.00032054,5]
[327945253,1716689488551,-500.0,0.00032054,5]
[327945254,1716689488561,-500.0,0.00032054,5]
[327945255,1716689488570,-512.25025454,0.00032054,5]
[327945256,1716689488579,-500.0,0.00032054,5]
[327945257,1716689488589,-210.42847789,0.00032054,5]
[327945258,1716689488598,-500.0,0.00032054,5]
[327945259,1716689488607,-576.02754967,0.00032054,5]
[327945260,1716689488617,-500.0,0.00032054,5]
[327945261,1716689488627,-500.0,0.00032054,5]
[327945262,1716689488637,-500.0,0.00032054,5]
[327945263,1716689488646,-500.0,0.00032054,5]
[327945264,1716689488655,-500.0,0.00032054,5]
[327945265,1716689488665,-500.0,0.00032054,5]
[327945266,1716689488674,-500.0,0.00032054,5]
[327945267,1716689488684,-500.0,0.00032054,5]
[327945268,1716689488695,-500.0,0.00032054,5]
[327945269,1716689488706,-500.0,0.00032054,5]
[327945270,1716689488716,-500.0,0.00032054,5]
[327945271,1716689488726,-199.93145736,0.00032054,5]
[327945272,1716689488735,-500.0,0.00032054,2]
[327945273,1716689488744,-500.0,0.00032054,5]
[327945274,1716689488754,-500.0,0.00032054,5]
[327945275,1716689488763,-500.0,0.00032054,5]
[327945276,1716689488773,-500.0,0.00032054,5]
[327945277,1716689488784,-500.0,0.00032054,5]
[327945278,1716689488794,-500.0,0.00032054,5]
[327945279,1716689488804,-791.92,0.00032054,5]
[327945280,1716689488815,-190.67263349,0.00032054,5]
[327945281,1716689488825,-500.0,0.00032054,5]
[327945282,1716689488835,-500.0,0.00032054,5]
[327945283,1716689488845,-520.36909365,0.00032054,5]
[327945284,1716689488854,-500.0,0.00032054,5]
[327945285,1716689488864,-500.0,0.00032054,5]
[327945286,1716689488874,-500.0,0.00032054,5]
[327945287,1716689488884,-1533.82,0.00032054,5]
[327945288,1716689488961,-500.0,0.00032054,5]
[327945289,1716689488971,-500.0,0.00032054,5]
[327945290,1716689488980,-500.0,0.00032054,5]
[327945291,1716689488992,-500.0,0.00032054,5]
[327945292,1716689489002,-1324.01,0.00032054,5]
[327945293,1716689489013,-510.72,0.00032054,5]
[327945294,1716689489023,-500.0,0.00032054,5]
[327945295,1716689489031,-500.0,0.00032054,5]
[327945296,1716689489041,-500.0,0.00032054,5]
[327945297,1716689489050,-500.0,0.00032054,5]
[327945298,1716689489060,-500.0,0.00032054,5]
[327945299,1716689489069,-500.0,0.00032054,5]
[327945300,1716689489079,-745.95,0.00032054,5]
[327945301,1716689489090,-500.0,0.00032054,5]
[327945302,1716689489099,-500.0,0.00032054,5]
[327945303,1716689489109,-500.0,0.00032054,5]
[327945304,1716689489118,-643.54,0.00032054,5]
[327945305,1716689489128,-1399.66,0.00032054,5]
[327945306,1716689489137,-500.0,0.00032054,2]
[327945307,1716689489146,-500.0,0.00032054,5]
[327945308,1716689489155,-584.42330687,0.00032054,5]
[327945309,1716689489165,-516.12443578,0.00032054,5]
[327945310,1716689489174,-549.86,0.00032054,5]
[327945311,1716689489183,-500.0,0.00032054,5]
[327945312,1716689489192,-500.0,0.00032054,5]
[327945313,1716689489202,-500.0,0.00032054,5]
[327945314,1716689489211,-642.01,0.00032054,5]
[327945315,1716689489220,-500.0,0.00032054,5]
[327945316,1716689489230,-500.0,0.00032054,5]
[327945317,1716689489240,-500.0,0.00032054,5]
[327945318,1716689489249,-703.66,0.00032054,5]
[327945319,1716689489258,-500.0,0.00032054,5]
[327945320,1716689489267,-3714.68,0.00032054,5]
[327945321,1716689489276,-500.0,0.00032054,5]
[327945322,1716689489285,-500.0,0.00032054,5]
[327945323,1716689489295,-500.0,0.00032054,5]
[327945324,1716689489304,-651.9,0.00032054,5]
[327945325,1716689489314,-500.0,0.00032054,5]
[327945326,1716689489323,-500.0,0.00032054,5]
[327945327,1716689489332,-620.85,0.00032054,5]
[327945328,1716689489341,-500.0,0.00032054,5]
[327945329,1716689489350,-500.0,0.00032054,5]
[327945330,1716689489359,-500.0,0.00032054,5]
[327945331,1716689489368,-1054.23,0.00032054,5]
[327945332,1716689489378,-500.0,0.00032054,5]
[327945333,1716689489387,-500.0,0.00032054,5]
[327945334,1716689489396,-521.45,0.00032054,5]
[327945335,1716689489405,-500.0,0.00032054,5]
[327945336,1716689489414,-782.44,0.00032054,5]
[327945337,1716689489423,-610.15769911,0.00032054,5]
[327945338,1716689489433,-1229.45,0.00032054,5]
[327945339,1716689489442,-500.0,0.00032054,5]
[327945340,1716689489455,-500.0,0.00032054,5]
[327945341,1716689489465,-633.37,0.00032054,5]
[327945342,1716689489475,-509.96301712,0.00032054,5]
[327945343,1716689489484,-500.0,0.00032054,5]
[327945344,1716689489494,-500.0,0.00032054,2]
[327945345,1716689489503,-500.0,0.00032054,5]
[327945346,1716689489514,-649.42,0.00032054,5]
[327945347,1716689489526,-500.0,0.00032054,5]
[327945348,1716689489536,-500.0,0.00032054,5]
[327945349,1716689489545,-848.23,0.00032054,5]
[327945350,1716689489554,-1479.33,0.00032054,5]
[327945351,1716689489564,-500.0,0.00032054,5]
[327945352,1716689489573,-411.69713065,0.00032054,5]
[327945353,1716689489582,-656.31,0.00032054,5]
[327945354,1716689489591,-500.0,0.00032054,5]
[327945355,1716689489600,-500.0,0.00032054,5]
[327945356,1716689489609,-20000.0,0.00032054,2]
[327945357,1716689489619,-500.0,0.00032054,5]
[327945358,1716689489628,-500.0,0.00032054,5]
[327945359,1716689489637,-500.0,0.00032054,5]
[327945360,1716689489646,-1156.98,0.00032054,5]
[327945361,1716689489655,-500.0,0.00032054,5]
[327945362,1716689489664,-507.44,0.00032054,5]
[327945363,1716689489673,-500.0,0.00032054,5]
[327945364,1716689489683,-500.0,0.00032054,5]
[327945365,1716689489692,-500.0,0.00032054,5]
[327945366,1716689489701,-500.0,0.00032054,5]
[327945367,1716689489710,-1130.57,0.00032054,5]
[327945368,1716689489719,-627.87,0.00032054,5]
[327945369,1716689489729,-834.9,0.00032054,5]
[327945370,1716689489738,-500.0,0.00032054,5]
[327945371,1716689489747,-1005.78,0.00032054,5]
[327945372,1716689489756,-500.0,0.00032054,5]
[327945373,1716689489766,-500.0,0.00032054,5]
[327945374,1716689489775,-500.0,0.00032054,5]
[327945375,1716689489784,-500.0,0.00032054,5]
[327945376,1716689489794,-1521.04,0.00032054,5]
[327945377,1716689489803,-934.1,0.00032054,5]
[327945378,1716689489812,-1113.26,0.00032054,5]
[327945379,1716689489822,-500.0,0.00032054,5]
[327945380,1716689489831,-606.03,0.00032054,5]
[327945381,1716689489840,-500.0,0.00032054,5]
[327945382,1716689489849,-500.0,0.00032054,5]
[327945383,1716689489860,-150.0,0.00032054,5]
[327945384,1716689489869,-500.0,0.00032054,5]
[327945385,1716689489879,-500.0,0.00032054,5]
[327945386,1716689489888,-500.0,0.00032054,5]
[327945387,1716689489897,-552.44,0.00032054,5]
[327945388,1716689489907,-500.0,0.00032054,5]
[327945389,1716689489916,-500.0,0.00032054,5]
[327945390,1716689489925,-500.0,0.00032054,5]
[327945391,1716689489934,-1508.31,0.00032054,5]
[327945392,1716689489943,-500.0,0.00032054,5]
[327945393,1716689489952,-500.0,0.00032054,5]
[327945394,1716689489961,-1578.22,0.00032054,5]
[327945395,1716689489970,-890.7,0.00032054,5]
[327945396,1716689489979,-500.0,0.00032054,5]
[327945397,1716689489989,-500.0,0.00032054,5]
[327945398,1716689489999,-500.0,0.00032054,5]
[327945399,1716689490008,-500.0,0.00032054,5]
[327945400,1716689490018,-500.0,0.00032054,5]
[327945401,1716689490027,-707.92,0.00032054,5]
[327945402,1716689490037,-500.0,0.00032054,5]
[327945403,1716689490046,-500.0,0.00032054,5]
[327945404,1716689490056,-500.0,0.00032054,5]
[327945405,1716689490066,-500.0,0.00032054,5]
[327945406,1716689490075,-500.0,0.00032054,5]
[327945407,1716689490086,-1646.88,0.00032054,5]
[327945408,1716689490095,-1398.68,0.00032054,5]
[327945409,1716689490105,-500.0,0.00032054,5]
[327945410,1716689490115,-523.33808051,0.00032054,5]
[327945411,1716689490124,-500.0,0.00032054,5]
[327945412,1716689490133,-569.4,0.00032054,5]
[327945413,1716689490145,-998.63,0.00032054,5]
[327945414,1716689490154,-500.86316649,0.00032054,5]
[327945415,1716689490165,-500.0,0.00032054,5]
[327945416,1716689490174,-500.0,0.00032054,5]
[327945417,1716689490183,-500.0,0.00032054,5]
[327945418,1716689490193,-522.99269651,0.00032054,5]
[327945419,1716689490202,-500.0,0.00032054,5]
[327945420,1716689490212,-606.87,0.00032054,5]